bitfinex-derivatives/quotes_BNBF0:USTF0_20260221
["timestamp","ask_amount","ask_price","bid_price","bid_amount"]
[1771713279769,1.19622819,627.01,626.49,2.99143171]
[1771713283974,1.19622819,627.02,626.5,1.19643171]
[1771713286075,1.19622819,627.02,626.49,2.99143171]
[1771713287075,1.19622819,627.03,626.49,2.99143171]
[1771713287975,1.19622819,627.03,626.49,1.19643171]
[1771713291979,1.19622819,627.03,626.5,1.629]
[1771713292786,1.59488897,627.14,626.5,1.629]
[1771713292984,1.19677465,627.03,626.5,1.629]
[1771713307993,1.19677465,627.03,626.49,1.19541281]
[1771713311100,1.19677465,627.03,626.5,1.87]
[1771713315203,1.59488897,627.15,626.5,1.87]
[1771713315398,1.19677605,627.03,626.5,1.87]
[1771713316200,1.19677605,627.03,626.5,3.06541586]
[1771713324210,1.19677605,627.02,626.5,3.06541586]
[1771713324706,1.19677605,627.03,626.51,1.19541586]
[1771713328216,1.19677605,627.02,626.51,1.19541586]
[1771713329718,1.19677605,627.07,626.56,1.19541586]
[1771713330115,1.19677605,627.08,626.55,1.19541586]
[1771713330319,1.19677605,627.08,626.57,1.209]
[1771713331114,1.19677605,627.09,626.57,1.209]
[1771713333815,1.59488897,627.2,626.57,1.209]
[1771713333816,1.19677605,627.1,626.57,1.209]
[1771713336121,1.19677605,627.11,626.57,1.209]
[1771713340126,1.59488897,627.22,626.57,1.209]
[1771713340322,1.19583161,627.11,626.57,1.209]
[1771713341525,1.19583161,627.14,626.57,2.40329504]
[1771713341825,1.19583161,627.15,626.58,1.19429504]
[1771713342224,1.19583161,627.18,626.6,1.19429504]
[1771713343224,1.19583161,627.19,626.59,1.19429504]
[1771713344427,1.19583161,627.23,626.62,1.19429504]
[1771713345227,1.19583161,627.23,626.61,1.19429504]
[1771713345724,1.19583161,627.25,626.64,1.19429504]
[1771713346222,1.19583161,627.26,626.63,1.19429504]
[1771713347122,1.19583161,627.27,626.62,1.19429504]
[1771713348825,1.19583161,627.27,626.63,1.682]
[1771713349224,1.19583161,627.28,626.63,1.682]
[1771713351126,1.19583161,627.29,626.63,1.682]
[1771713354726,1.19583161,627.3,626.63,1.682]
[1771713369135,1.19583161,627.29,626.63,1.682]
[1771713372442,1.19583161,627.28,626.63,1.682]
[1771713375342,1.19583161,627.27,626.63,1.682]
[1771713377139,1.19583161,627.27,626.63,2.87629504]
[1771713379541,1.19583161,627.26,626.63,2.87629504]
[1771713380241,1.19583161,627.26,626.64,1.19429504]
[1771713382142,1.19583161,627.25,626.64,1.19429504]
[1771713383248,1.19583161,627.25,626.65,1.19429504]
[1771713384252,1.19583161,627.24,626.65,1.19429504]
[1771713384751,1.19583161,627.25,626.66,1.19429504]
[1771713385154,0.2775352,627.53,626.66,1.19429504]
[1771713385155,1.19583161,627.24,626.66,1.19429504]
[1771713385348,1.19583161,627.33,626.75,1.19429504]
[1771713386152,1.19583161,627.32,626.76,1.19429504]
[1771713386353,1.19583161,627.33,626.76,1.19429504]
[1771713387154,1.19583161,627.32,626.76,1.19429504]
[1771713387450,1.19583161,627.33,626.75,1.19429504]
[1771713388149,1.19583161,627.33,626.76,1.19429504]
[1771713388352,1.19583161,627.33,626.75,1.19429504]
[1771713390355,1.19583161,627.34,626.75,1.19429504]
[1771713391258,1.19583161,627.34,626.74,1.19429504]
[1771713393360,1.19583161,627.35,626.74,1.19429504]
[1771713396162,1.19583161,627.35,626.73,1.19429504]
[1771713400167,1.19583161,627.36,626.73,1.19429504]
[1771713407577,1.19583161,627.36,626.74,1.661]
[1771713417383,1.19583161,627.35,626.74,1.661]
[1771713419282,1.19583161,627.35,626.74,2.85529504]
[1771713422988,1.19583161,627.32,626.74,1.661]
[1771713424484,1.19583161,627.29,626.74,1.661]
[1771713425088,1.19583161,627.26,626.74,1.661]
[1771713426290,1.19583161,627.25,626.74,1.661]
[1771713426491,1.19583161,627.26,626.74,1.661]
[1771713428393,1.19583161,627.25,626.74,1.661]
[1771713431998,1.19583161,627.23,626.74,1.661]
[1771713432196,1.19583161,627.12,626.74,1.661]
[1771713432394,1.19583161,627.14,626.74,1.661]
[1771713433399,1.19583161,627.15,626.74,1.661]
[1771713434497,1.19583161,627.16,626.74,1.661]
[1771713436499,1.19583161,627.17,626.74,1.661]
[1771713437506,1.19583161,627.18,626.74,1.661]
[1771713438605,1.19583161,627.18,626.53,0.27754516]
[1771713439404,1.19583161,627.19,626.53,0.27754516]
[1771713440703,1.19583161,627.19,626.45,1.19429504]
[1771713440906,1.19583161,627.19,626.46,0.2775994]
[1771713441410,1.19583161,627.19,626.47,1.856]
[1771713442306,1.19583161,627.2,626.47,1.856]
[1771713444909,1.19583161,627.18,626.47,1.856]
[1771713445508,1.19583161,627.19,626.47,1.856]
[1771713455413,1.19583161,627.18,626.47,1.856]
[1771713459418,1.19583161,627.17,626.47,1.856]
[1771713462318,1.19583161,627.09,626.47,1.856]
[1771713462519,1.19583161,627.09,626.46,0.27759497]
[1771713463017,1.19583161,627.08,626.46,0.27759497]
[1771713463220,1.19583161,627.07,626.46,0.27759497]
[1771713464019,1.59488897,627.18,626.46,0.27759497]
[1771713464317,2.39233345,627.3,626.46,0.27759497]
[1771713464615,2.39233345,627.3,626.13,2.38766708]
[1771713464816,0.27759497,627.32,626.13,2.38766708]
[1771713464817,0.27759497,627.32,626.38,0.27762819]
[1771713466015,0.27759497,627.32,626.39,1.792]
[1771713466219,1.19296087,627.03,626.39,1.792]
[1771713467421,1.19296087,627.02,626.39,1.792]
[1771713471622,1.19296087,626.96,626.39,1.792]
[1771713473323,1.19296087,626.97,626.39,1.792]
[1771713473623,1.19296087,626.95,626.39,1.792]
[1771713474322,1.19296087,626.93,626.39,1.792]
[1771713474522,1.19296087,626.94,626.39,1.792]
[1771713476423,1.19296087,626.89,626.39,1.792]
[1771713477523,1.19296087,626.9,626.39,1.792]
[1771713478521,1.19296087,626.91,626.39,1.792]
[1771713479421,1.19296087,626.92,626.39,1.792]
[1771713480526,1.19296087,626.89,626.39,1.792]
[1771713480828,1.19296087,626.87,626.39,1.792]
[1771713481325,1.19296087,626.88,626.39,1.792]
[1771713481724,1.19296087,626.83,626.39,1.792]
[1771713482522,1.19296087,626.84,626.39,1.792]
[1771713485525,1.19296087,626.76,626.39,1.792]
[1771713485726,1.19296087,626.74,626.39,1.792]
[1771713486424,1.19296087,626.75,626.39,1.792]
[1771713486629,1.19296087,626.73,626.39,1.792]
[1771713487525,1.19296087,626.74,626.39,1.792]
[1771713487729,1.19296087,626.71,626.39,1.792]
[1771713488325,1.19296087,626.72,626.39,1.792]
[1771713489331,1.19296087,626.73,626.39,1.792]
[1771713489633,1.19296087,626.75,626.39,1.792]
[1771713490135,1.19296087,626.76,626.39,1.792]
[1771713490433,1.19296087,626.8,626.39,1.792]
[1771713490730,1.19296087,626.83,626.39,1.792]
[1771713493436,1.19296087,626.84,626.39,1.792]
[1771713497735,1.19296087,626.88,626.39,1.792]
[1771713498339,1.19296087,626.87,626.39,1.792]
[1771713501535,1.19296087,626.86,626.39,1.792]
[1771713502037,1.19296087,626.86,626.02,74.33463935]
[1771713503440,1.19296087,626.85,626.02,74.33463935]
[1771713504541,1.19296087,626.84,626.02,74.33463935]
[1771713505443,1.19296087,626.83,626.02,74.33463935]
[1771713506044,1.19296087,626.83,626.03,1.275]
[1771713506543,1.19296087,626.82,626.03,1.275]
[1771713507344,1.19296087,626.81,626.03,1.275]
[1771713510440,1.19296087,626.8,626.03,1.275]
[1771713512441,1.19296087,626.79,626.03,1.275]
[1771713514441,1.19296087,626.78,626.03,1.275]
[1771713515448,1.19296087,626.77,626.03,1.275]
[1771713516346,1.19296087,626.76,626.03,1.275]
[1771713518347,1.19296087,626.75,626.03,1.275]
[1771713519552,1.19296087,626.74,626.03,1.275]
[1771713521353,1.19296087,626.73,626.03,1.275]
[1771713523454,1.19296087,626.72,626.03,1.275]
[1771713524354,1.19296087,626.71,626.03,1.275]
[1771713530455,1.19296087,626.7,626.03,1.275]
[1771713533059,1.19296087,626.69,626.03,1.275]
[1771713533357,1.19296087,626.68,626.03,1.275]
[1771713534460,1.19296087,626.67,626.03,1.275]
[1771713535062,1.19296087,626.68,626.12,1.19685135]
[1771713535359,1.19296087,626.67,626.12,1.19685135]
[1771713539368,1.19296087,626.67,626.13,1.19685135]
[1771713540372,1.19296087,626.66,626.13,1.19685135]
[1771713546673,1.59061449,626.77,626.03,1.275]
[1771713546976,1.1973025,626.66,626.13,1.19767298]
[1771713553682,1.1973025,626.66,626.14,1.494]
[1771713557186,1.1973025,626.64,626.14,1.494]
[1771713558186,1.1973025,626.65,626.14,1.494]
[1771713575893,1.1973025,626.63,626.14,1.494]
[1771713576300,1.1973025,626.6,626.14,1.494]
[1771713578199,1.1973025,626.61,626.14,1.494]
[1771713582708,1.1973025,626.6,626.14,1.494]
[1771713584108,1.1973025,626.61,626.14,1.494]
[1771713590515,1.1973025,626.59,626.14,1.494]
[1771713592619,1.1973025,626.58,626.14,1.494]
[1771713593220,1.1973025,626.59,626.14,1.494]
[1771713594821,1.1973025,626.59,625.99,1.19767298]
[1771713595122,1.1973025,626.58,625.87,1.58966147]
[1771713595321,1.1973025,626.58,625.87,1.867508]
[1771713596118,1.1973025,626.59,625.87,1.867508]
[1771713597324,1.1973025,626.52,625.8,1.58966147]
[1771713597520,1.1973025,626.52,625.81,0.27787426]
[1771713598224,1.1973025,626.52,625.82,1.51]
[1771713598424,1.1973025,626.51,625.82,1.51]
[1771713599126,1.1973025,626.52,625.82,1.51]
[1771713600226,1.1973025,626.48,625.82,1.51]
[1771713600723,1.1973025,626.38,625.82,1.51]
[1771713600925,1.1973025,626.41,625.82,1.51]
[1771713601121,1.1973025,626.48,625.82,1.51]
[1771713602027,1.1973025,626.49,625.82,1.51]
[1771713602228,1.1973025,626.52,625.82,1.51]
[1771713603126,1.1973025,626.53,625.82,1.51]
[1771713603927,1.1973025,626.61,625.83,1.58966147]
[1771713604127,1.1973025,626.65,625.86,1.58966147]
[1771713605028,1.59061449,626.76,625.86,1.58966147]
[1771713605029,1.1973025,626.64,625.86,1.58966147]
[1771713608430,1.1973025,626.65,625.87,1.58966147]
[1771713609230,1.59061449,626.76,625.87,1.58966147]
[1771713609231,1.1973025,626.64,625.87,1.58966147]
[1771713612433,1.1973025,626.68,625.91,1.58966147]
[1771713614233,1.1973025,626.67,625.9,1.58966147]
[1771713614434,1.1973025,626.68,625.91,1.58966147]
[1771713616235,1.1973025,626.68,625.92,1.58966147]
[1771713617035,1.1973025,626.7,625.94,1.58966147]
[1771713621137,1.1973025,626.71,625.94,1.58966147]
[1771713624142,1.1973025,626.71,625.93,1.58966147]
[1771713626339,1.59061449,626.82,625.93,1.58966147]
[1771713626541,1.19277546,626.71,625.93,1.58966147]
[1771713631244,1.19277546,626.71,625.92,1.58966147]
[1771713633146,1.19277546,626.72,625.92,1.58966147]
[1771713640847,1.19277546,626.71,625.92,1.58966147]
[1771713644154,1.19277546,626.7,625.92,1.58966147]
[1771713645952,1.19277546,626.68,625.94,1.58966147]
[1771713647155,1.19277546,626.67,625.95,1.58966147]
[1771713648153,1.19277546,626.66,625.96,1.58966147]
[1771713649256,1.19277546,626.66,625.97,1.58966147]
[1771713652153,1.19277546,626.65,625.97,1.58966147]
[1771713653153,1.19277546,626.65,625.98,1.58966147]
[1771713655062,1.19277546,626.65,625.99,1.58966147]
[1771713655461,1.19277546,626.65,626.0,1.743]
[1771713657062,1.19277546,626.63,626.0,1.743]
[1771713657562,1.19277546,626.61,626.0,1.743]
[1771713661162,1.19277546,626.59,626.0,1.743]
[1771713661459,1.19277546,626.6,626.0,1.743]
[1771713664965,1.19277546,626.59,626.0,1.743]
[1771713666268,1.19277546,626.6,626.0,1.743]
[1771713675274,1.19277546,626.61,626.0,1.743]
[1771713676477,1.19277546,626.59,626.0,1.743]
[1771713677482,1.19277546,626.59,625.88,1.58966147]
[1771713679985,1.19277546,626.59,625.89,1.697]
[1771713680481,1.19277546,626.6,625.89,1.697]
[1771713681082,1.19277546,626.59,625.89,1.697]
[1771713681286,1.19277546,626.6,625.89,1.697]
[1771713683388,1.19277546,626.59,625.89,1.697]
[1771713685187,1.19277546,626.58,625.89,1.697]
[1771713694492,1.19277546,626.56,625.89,1.697]
[1771713697192,1.19277546,626.5,625.89,1.697]
[1771713697397,1.19277546,626.51,625.89,1.697]
[1771713698193,1.19277546,626.48,625.89,1.697]
[1771713699396,1.19277546,626.49,625.89,1.697]
[1771713700596,1.19277546,626.48,625.89,1.697]
[1771713701496,1.19277546,626.47,625.89,1.697]
[1771713702196,1.19277546,626.48,625.89,1.697]
[1771713703204,1.19277546,626.47,625.89,1.697]
[1771713703397,1.19277546,626.48,625.89,1.697]
[1771713705501,1.19277546,626.5,625.89,1.697]
[1771713706703,1.19351711,626.5,625.89,1.697]
[1771713707102,1.19351711,626.57,625.89,1.697]
[1771713710100,1.19351711,626.57,625.82,1.58966147]
[1771713711801,1.19351711,626.58,625.83,1.58966147]
[1771713713202,1.19351711,626.58,625.84,1.825]
[1771713713502,1.19351711,626.57,625.84,1.825]
[1771713713998,1.19351711,626.63,625.89,1.58966147]
[1771713714198,1.19351711,626.64,625.89,1.58966147]
[1771713723609,1.19351711,626.68,625.92,1.58966147]
[1771713725214,1.19351711,626.69,625.92,1.58966147]
[1771713728219,1.19351711,626.69,625.91,1.58966147]
[1771713730318,1.19351711,626.7,625.91,1.58966147]
[1771713730714,1.19351711,626.7,625.92,1.582]
[1771713734422,1.19351711,626.72,625.92,3.17166147]
[1771713737325,1.19351711,626.73,625.92,3.17166147]
[1771713738223,1.19351711,626.73,625.92,1.582]
[1771713739629,1.19351711,626.74,625.93,1.58966147]
[1771713740325,1.19351711,626.75,625.92,3.17166147]
[1771713741828,1.19351711,626.79,625.96,1.58966147]
[1771713745231,1.19351711,626.79,625.97,1.58966147]
[1771713748530,1.19351711,626.79,625.98,1.58966147]
[1771713749335,1.19351711,626.78,625.98,1.58966147]
[1771713750332,1.19351711,626.77,625.99,1.58966147]
[1771713753337,1.19351711,626.77,626.0,1.58966147]
[1771713753735,1.19351711,626.76,626.0,1.58966147]
[1771713754235,1.19351711,626.77,626.0,1.58966147]
[1771713754436,1.19351711,626.76,626.0,1.58966147]
[1771713756233,1.19351711,626.76,626.01,1.58966147]
[1771713757334,1.19351711,626.75,626.01,1.58966147]
[1771713760339,1.19351711,626.75,626.02,1.58966147]
[1771713762235,1.19351711,626.74,626.02,1.58966147]
[1771713763841,1.19351711,626.74,626.03,1.189]
[1771713767237,1.19351711,626.74,626.03,2.77866147]
[1771713768242,1.19351711,626.73,626.03,2.77866147]
[1771713775247,1.19351711,626.74,626.16,1.19645738]
[1771713777249,1.19351711,626.74,626.17,1.19645738]
[1771713778246,1.19351711,626.73,626.17,1.19645738]
[1771713778547,1.19351711,626.72,626.16,1.19645738]
[1771713778745,1.19351711,626.69,626.13,1.19645738]
[1771713785852,1.19351711,626.62,626.06,1.19645738]
[1771713786051,1.19351711,626.35,626.03,1.189]
[1771713786351,1.19351711,626.34,626.03,1.189]
[1771713786854,1.19351711,626.32,626.03,1.189]
[1771713787051,2.38592174,626.55,626.03,1.189]
[1771713787052,1.19351711,626.33,626.03,1.189]
[1771713787351,2.38592174,626.55,626.03,1.189]
[1771713787352,1.19351711,626.55,626.03,1.189]
[1771713787555,1.19351711,626.49,626.03,1.189]
[1771713787753,1.19351711,626.43,626.03,1.189]
[1771713787956,1.19351711,626.42,626.03,1.189]
[1771713788152,1.19351711,626.32,626.03,1.189]
[1771713788556,1.19351711,626.31,626.03,1.189]
[1771713789252,1.19351711,626.32,626.03,1.189]
[1771713789455,1.19351711,626.28,626.03,1.189]
[1771713790156,1.19351711,626.3,626.03,1.189]
[1771713790951,1.19351711,626.32,626.03,1.189]
[1771713791156,1.19351711,626.34,626.03,1.189]
[1771713791757,1.19351711,626.35,626.03,1.189]
[1771713792159,1.19351711,626.36,626.03,1.189]
[1771713793059,1.19351711,626.38,626.03,1.189]
[1771713793754,1.19351711,626.39,626.03,1.189]
[1771713794259,1.19351711,626.4,626.03,1.189]
[1771713795162,1.19351711,626.41,626.03,1.189]
[1771713796162,1.19351711,626.47,626.03,1.189]
[1771713797058,1.19351711,626.48,626.03,1.189]
[1771713797261,1.19351711,626.47,626.03,1.189]
[1771713798566,0.27778665,626.96,626.03,1.189]
[1771713798567,1.19351711,626.48,626.03,1.189]
[1771713798863,1.19351711,626.48,625.58,0.27793751]
[1771713799166,1.19351711,626.54,625.58,0.27793751]
[1771713800367,1.19351711,626.55,625.58,0.27793751]
[1771713801266,1.19351711,626.56,625.58,0.27793751]
[1771713801477,1.19351711,626.56,625.59,1.256]
[1771713804469,1.19351711,626.6,625.59,1.256]
[1771713805472,1.19351711,626.48,625.59,1.256]
[1771713805672,0.95407994,626.47,625.59,1.256]
[1771713805870,1.19351711,626.48,625.59,1.256]
[1771713805871,0.95407994,626.46,625.59,1.256]
[1771713806071,0.95407994,626.45,625.59,1.256]
[1771713806374,0.95407994,626.44,625.59,1.256]
[1771713806575,0.95407994,626.43,625.59,1.256]
[1771713806874,0.95407994,626.42,625.59,1.256]
[1771713807075,0.95407994,626.41,625.59,1.256]
[1771713807275,0.95407994,626.4,625.59,1.256]
[1771713807575,0.95407994,626.39,625.59,1.256]
[1771713807772,0.95407994,626.38,625.59,1.256]
[1771713807971,0.95407994,626.37,625.59,1.256]
[1771713808170,0.95407994,626.36,625.59,1.256]
[1771713808371,0.95407994,626.35,625.59,1.256]
[1771713808572,0.95407994,626.34,625.59,1.256]
[1771713808772,0.95407994,626.33,625.59,1.256]
[1771713808977,0.95407994,626.32,625.59,1.256]
[1771713809279,0.95407994,626.31,625.59,1.256]
[1771713809476,0.95407994,626.3,625.59,1.256]
[1771713809675,0.95407994,626.29,625.59,1.256]
[1771713809876,0.95407994,626.28,625.59,1.256]
[1771713810075,0.95407994,626.27,625.59,1.256]
[1771713810375,0.95407994,626.26,625.59,1.256]
[1771713810574,1.19351711,626.46,625.59,1.256]
[1771713810775,0.95458046,626.45,625.59,1.256]
[1771713810978,0.95458046,626.44,625.59,1.256]
[1771713811175,0.95458046,626.43,625.59,1.256]
[1771713811379,0.95458046,626.42,625.59,1.256]
[1771713811580,0.95458046,626.41,625.59,1.256]
[1771713811775,0.95458046,626.4,625.59,1.256]
[1771713811975,0.95458046,626.39,625.59,1.256]
[1771713812276,0.95458046,626.38,625.59,1.256]
[1771713812479,0.95458046,626.37,625.59,1.256]
[1771713812675,0.95458046,626.36,625.59,1.256]
[1771713812881,0.95458046,626.35,625.59,1.256]
[1771713813081,0.95458046,626.34,625.59,1.256]
[1771713813379,0.95458046,626.33,625.59,1.256]
[1771713813580,0.95458046,626.32,625.59,1.256]
[1771713813777,0.95458046,626.31,625.59,1.256]
[1771713814079,0.95458046,626.3,625.59,1.256]
[1771713814276,0.95458046,626.29,625.59,1.256]
[1771713814481,0.95458046,626.28,625.59,1.256]
[1771713814681,0.95458046,626.27,625.59,1.256]
[1771713814882,0.95458046,626.26,625.59,1.256]
[1771713815082,0.95458046,626.25,625.59,1.256]
[1771713815382,0.95458046,626.24,625.59,1.256]
[1771713815677,0.95537795,626.23,625.59,1.256]
[1771713815877,0.95537795,626.22,625.59,1.256]
[1771713816182,0.95537795,626.21,625.59,1.256]
[1771713816381,0.95537795,626.2,625.59,1.256]
[1771713816577,0.95537795,626.19,625.59,1.256]
[1771713816777,0.95537795,626.18,625.59,1.256]
[1771713816980,0.95537795,626.17,625.59,1.256]
[1771713817177,0.95537795,626.16,625.59,1.256]
[1771713817381,0.95537795,626.15,625.59,1.256]
[1771713817679,1.18240082,626.35,625.59,1.256]
[1771713819179,2.1382842,626.34,625.59,1.256]
[1771713819382,0.95588338,626.33,625.59,1.256]
[1771713819583,0.95588338,626.32,625.59,1.256]
[1771713819879,0.95588338,626.31,625.59,1.256]
[1771713820078,0.95588338,626.3,625.59,1.256]
[1771713820377,0.95588338,626.29,625.59,1.256]
[1771713820581,0.95588338,626.28,625.59,1.256]
[1771713820781,0.95588338,626.27,625.59,1.256]
[1771713820978,0.95588338,626.26,625.59,1.256]
[1771713821182,0.95588338,626.25,625.59,1.256]
[1771713821380,0.95588338,626.24,625.59,1.256]
[1771713821581,0.95588338,626.23,625.59,1.256]
[1771713821782,0.95588338,626.22,625.59,1.256]
[1771713821982,0.95588338,626.21,625.59,1.256]
[1771713822181,0.95588338,626.2,625.59,1.256]
[1771713822381,0.95588338,626.19,625.59,1.256]
[1771713822582,0.95588338,626.18,625.59,1.256]
[1771713822884,0.95588338,626.17,625.59,1.256]
[1771713823084,0.95588338,626.16,625.59,1.256]
[1771713823285,0.95588338,626.15,625.59,1.256]
[1771713823582,0.95588338,626.14,625.59,1.256]
[1771713823787,0.95588338,626.13,625.59,1.256]
[1771713824081,0.95588338,626.12,625.59,1.256]
[1771713824279,0.27778665,626.96,625.59,1.256]
[1771713824280,0.95588338,626.11,625.59,1.256]
[1771713824482,0.95588338,626.1,625.59,1.256]
[1771713824682,0.95588338,626.09,625.59,1.256]
[1771713824881,0.95588338,626.08,625.59,1.256]
[1771713825189,0.95899542,626.07,625.59,1.256]
[1771713825388,1.18240082,626.27,625.59,1.256]
[1771713826287,2.14139624,626.26,625.59,1.256]
[1771713826488,0.95899542,626.25,625.59,1.256]
[1771713826784,0.95899542,626.24,625.59,1.256]
[1771713826987,0.95899542,626.23,625.59,1.256]
[1771713827186,0.95899542,626.22,625.59,1.256]
[1771713827383,0.95899542,626.21,625.59,1.256]
[1771713827583,0.95899542,626.2,625.59,1.256]
[1771713827795,0.95899542,626.19,625.59,1.256]
[1771713827988,0.95899542,626.18,625.59,1.256]
[1771713828190,0.95899542,626.17,625.59,1.256]
[1771713828389,0.95899542,626.16,625.59,1.256]
[1771713828588,0.95899542,626.15,625.59,1.256]
[1771713828792,0.95899542,626.14,625.59,1.256]
[1771713829092,0.95899542,626.13,625.59,1.256]
[1771713829291,0.95899542,626.12,625.59,1.256]
[1771713829487,0.95899542,626.11,625.59,1.256]
[1771713829688,0.95899542,626.1,625.59,1.256]
[1771713829994,0.95899542,626.09,625.59,1.256]
[1771713830188,0.95899542,626.08,625.59,1.256]
[1771713830489,0.95899542,626.07,625.59,1.256]
[1771713830788,0.95899542,626.06,625.59,1.256]
[1771713830988,0.96343134,626.05,625.59,1.256]
[1771713831191,0.96343134,626.04,625.59,1.256]
[1771713831392,0.96343134,626.03,625.59,1.256]
[1771713831591,0.96343134,626.02,625.59,1.256]
[1771713831793,0.96343134,626.01,625.59,1.256]
[1771713832094,0.96343134,626.0,625.59,1.256]
[1771713832390,0.96343134,625.99,625.59,1.256]
[1771713832695,0.96343134,625.98,625.59,1.256]
[1771713832891,0.96343134,625.97,625.59,1.256]
[1771713833089,0.96343134,625.96,625.59,1.256]
[1771713833292,0.96343134,625.95,625.59,1.256]
[1771713833492,0.96343134,625.94,625.59,1.256]
[1771713833692,0.96343134,625.93,625.59,1.256]
[1771713833894,0.96343134,625.92,625.59,1.256]
[1771713834190,0.96343134,625.91,625.59,1.256]
[1771713834393,0.96343134,625.9,625.59,1.256]
[1771713834591,0.96343134,625.89,625.59,1.256]
[1771713834794,0.96343134,625.88,625.59,1.256]
[1771713834993,0.96343134,625.87,625.59,1.256]
[1771713835191,0.96343134,625.86,625.59,1.256]
[1771713835391,0.96343134,625.85,625.59,1.256]
[1771713835592,1.18240082,626.05,625.59,1.256]
[1771713836191,0.95152482,626.04,625.59,1.256]
[1771713836392,0.95152482,626.03,625.59,1.256]
[1771713836592,0.95152482,626.02,625.59,1.256]
[1771713836895,0.95152482,626.01,625.59,1.256]
[1771713837095,0.95152482,626.0,625.59,1.256]
[1771713837392,0.95152482,625.99,625.59,1.256]
[1771713837593,0.95152482,625.98,625.59,1.256]
[1771713837796,0.95152482,625.97,625.59,1.256]
[1771713837996,0.95152482,625.96,625.59,1.256]
[1771713838194,0.95152482,625.95,625.59,1.256]
[1771713838398,0.95152482,625.94,625.59,1.256]
[1771713838693,0.95152482,625.93,625.59,1.256]
[1771713838897,0.95152482,625.92,625.59,1.256]
[1771713839095,0.95152482,625.91,625.59,1.256]
[1771713839293,0.95152482,625.9,625.59,1.256]
[1771713839494,0.95152482,625.89,625.59,1.256]
[1771713839794,0.95152482,625.88,625.59,1.256]
[1771713839993,0.95152482,625.87,625.59,1.256]
[1771713840198,1.18240082,626.07,625.59,1.256]
[1771713843199,0.95125459,626.06,625.59,1.256]
[1771713843399,0.95125459,626.05,625.59,1.256]
[1771713843599,0.95125459,626.04,625.59,1.256]
[1771713843802,0.95125459,626.03,625.59,1.256]
[1771713844100,0.95125459,626.02,625.59,1.256]
[1771713844299,0.95125459,626.01,625.59,1.256]
[1771713844498,0.95125459,626.0,625.59,1.256]
[1771713844800,0.95125459,625.99,625.59,1.256]
[1771713845101,0.95125459,625.98,625.59,1.256]
[1771713845302,0.95125459,625.97,625.59,1.256]
[1771713845499,0.95125459,625.96,625.59,1.256]
[1771713845697,0.95125459,625.95,625.59,1.256]
[1771713846000,0.95125459,625.94,625.59,1.256]
[1771713846199,0.95125459,625.93,625.59,1.256]
[1771713846402,0.95125459,625.92,625.59,1.256]
[1771713846600,0.95125459,625.91,625.59,1.256]
[1771713846803,0.95125459,625.9,625.59,1.256]
[1771713847099,0.95125459,625.89,625.59,1.256]
[1771713847304,1.18240082,626.09,625.59,1.256]
[1771713850305,2.13296243,626.09,625.59,1.256]
[1771713850606,0.95056161,626.08,625.59,1.256]
[1771713850803,0.95056161,626.07,625.59,1.256]
[1771713851105,0.95056161,626.06,625.59,1.256]
[1771713851303,0.95056161,626.05,625.59,1.256]
[1771713851502,0.95056161,626.04,625.59,1.256]
[1771713851706,0.95056161,626.03,625.59,1.256]
[1771713851904,0.95056161,626.02,625.59,1.256]
[1771713852106,0.95056161,626.01,625.59,1.256]
[1771713852310,0.95056161,626.0,625.59,1.256]
[1771713852509,0.95056161,625.99,625.59,1.256]
[1771713852711,0.95056161,625.98,625.59,1.256]
[1771713852912,0.95056161,625.97,625.59,1.256]
[1771713853111,0.95056161,625.96,625.59,1.256]
[1771713853308,0.95056161,625.95,625.59,1.256]
[1771713853512,1.18240082,626.18,625.59,1.256]
[1771713855912,1.18240082,626.19,625.59,1.256]
[1771713856314,2.13315948,626.19,625.59,1.256]
[1771713856516,0.95075866,626.18,625.59,1.256]
[1771713856812,0.95075866,626.17,625.59,1.256]